bitfinex-derivatives/quotes_SOLF0:USTF0_20251002
["timestamp","ask_amount","ask_price","bid_price","bid_amount"]
[1759380081086,3.17299663,222.95,222.93,118.04]
[1759380081385,4.96846972,223.06,222.96,7.3]
[1759380081586,3.1753668,223.05,222.96,7.3]
[1759380081886,3.1753668,223.04,222.96,7.3]
[1759380082184,3.1753668,223.03,222.96,7.3]
[1759380082386,3.1753668,223.02,222.96,7.3]
[1759380082588,7.65,223.06,222.98,11.3342]
[1759380082784,3.12551293,223.05,222.99,110.48]
[1759380083085,10.77551293,223.04,222.99,110.48]
[1759380083386,3.12551293,223.03,222.99,110.48]
[1759380083684,3.12551293,223.02,223.0,7.3]
[1759380083886,7.65,223.07,222.99,117.78]
[1759380084086,3.12476277,223.06,222.99,117.78]
[1759380084288,3.12476277,223.05,222.99,117.78]
[1759380084591,10.74476277,223.04,223.0,7.3]
[1759380084783,3.12476277,223.03,223.0,7.3]
[1759380084983,3.12476277,223.02,223.0,7.3]
[1759380085183,7.62,223.04,222.99,110.48]
[1759380085385,3.12325781,223.03,223.0,7.3]
[1759380085584,7.62,223.04,223.0,7.3]
[1759380085786,7.62,223.02,222.96,7.3]
[1759380085986,10.74287375,223.01,222.89,7.3]
[1759380086190,7.62,222.99,222.89,7.3]
[1759380086390,3.12287375,222.98,222.9,98.82]
[1759380086592,3.12287375,222.97,222.9,98.82]
[1759380086793,7.62,222.99,222.9,98.82]
[1759380086993,3.12222937,222.98,222.9,98.82]
[1759380087287,7.62,222.99,222.9,98.82]
[1759380087288,3.12222937,222.97,222.9,98.82]
[1759380087492,7.62,222.99,222.9,98.82]
[1759380087693,3.12221726,222.98,222.9,98.82]
[1759380087894,3.12221726,222.97,222.9,98.82]
[1759380088095,7.62,222.99,222.9,98.82]
[1759380088297,3.12229862,222.98,222.9,98.82]
[1759380088593,3.12229862,222.97,222.9,98.82]
[1759380088794,7.62,222.99,222.9,98.82]
[1759380088993,3.12235534,222.98,222.9,98.82]
[1759380089197,3.12235534,222.97,222.9,98.82]
[1759380089400,7.62,222.99,222.9,98.82]
[1759380089594,3.12221114,222.98,222.9,98.82]
[1759380089794,3.12221114,222.97,222.9,98.82]
[1759380089996,7.62,222.99,222.9,98.82]
[1759380090296,3.12309891,222.98,222.91,7.3]
[1759380090495,3.12309891,222.97,222.91,7.3]
[1759380090695,7.62,222.99,222.91,7.3]
[1759380090897,3.12285546,222.98,222.91,7.3]
[1759380091098,3.12285546,222.97,222.91,7.3]
[1759380091294,7.62,222.99,222.91,7.3]
[1759380091601,7.62,222.97,222.91,7.3]
[1759380091801,3.12263963,222.96,222.9,106.12]
[1759380092101,7.62,222.97,222.9,106.12]
[1759380092305,3.12245549,222.96,222.9,106.12]
[1759380092605,7.62,222.97,222.9,106.12]
[1759380092805,3.12235628,222.96,222.9,106.12]
[1759380093004,7.62,223.01,222.92,7.3]
[1759380093207,3.12236083,223.0,222.92,7.3]
[1759380093400,3.12236083,222.99,222.92,7.3]
[1759380093602,3.12236083,222.98,222.92,7.3]
[1759380093801,3.12236083,222.97,222.92,7.3]
[1759380094004,7.62,223.01,222.92,7.3]
[1759380094195,3.12262689,223.0,222.92,7.3]
[1759380094398,3.12262689,222.99,222.94,7.3]
[1759380094701,7.62,223.01,222.95,110.44]
[1759380094702,3.12262689,222.98,222.95,110.44]
[1759380095009,3.11302141,222.97,222.96,7.3]
[1759380096904,6.20483067,223.05,222.96,7.3]
[1759380097108,10.73277704,223.04,222.96,7.3]
[1759380097407,7.62,223.02,222.96,7.3]
[1759380097608,7.62,223.0,222.96,7.3]
[1759380097907,3.11277704,222.99,222.95,110.44]
[1759380098111,7.62,223.01,222.93,7.3]
[1759380098408,7.62,222.99,222.93,7.3]
[1759380098605,7.62,222.97,222.93,7.3]
[1759380098810,7.62,223.0,222.93,7.3]
[1759380099010,3.11242357,222.99,222.93,7.3]
[1759380099205,7.62,222.97,222.93,7.3]
[1759380099407,7.62,223.0,222.93,7.3]
[1759380099709,3.11240953,222.99,222.9,110.42]
[1759380099907,7.62,222.97,222.9,110.42]
[1759380100107,3.11240953,222.96,222.9,110.42]
[1759380100309,7.62,222.94,222.9,117.72]
[1759380100510,7.62,222.94,222.91,7.3]
[1759380103506,4.0345,222.97,222.9,110.42]
[1759380103707,10.73123911,222.96,222.9,110.42]
[1759380104010,7.62,222.94,222.9,110.42]
[1759380104212,7.62,222.95,222.9,110.42]
[1759380104408,7.62,222.93,222.9,117.72]
[1759380106108,2.17163067,223.01,222.9,110.42]
[1759380106109,4.035,222.95,222.9,110.42]
[1759380106310,3.11070589,222.94,222.9,110.42]
[1759380106516,7.62,222.92,222.9,110.42]
[1759380108412,7.62,222.92,222.9,117.72]
[1759380108814,3.10988648,222.94,222.9,117.72]
[1759380109017,7.62,222.93,222.9,117.72]
[1759380110117,7.62,222.94,222.91,7.3]
[1759380110318,3.10940312,222.93,222.91,7.3]
[1759380110513,7.62,222.94,222.91,7.3]
[1759380110714,3.10940362,222.93,222.91,7.3]
[1759380110913,3.10930445,222.92,222.9,117.72]
[1759380111112,7.62,222.93,222.9,117.72]
[1759380111312,3.10898804,222.92,222.9,117.72]
[1759380111513,7.62,222.93,222.9,117.72]
[1759380111713,3.1089892,222.92,222.9,117.72]
[1759380111917,7.62,222.93,222.9,117.72]
[1759380112119,3.10899138,222.92,222.9,117.72]
[1759380113023,7.62,222.93,222.9,117.72]
[1759380113423,10.72871527,222.93,222.9,117.72]
[1759380113620,7.62,222.93,222.9,117.72]
[1759380113819,7.62,222.93,222.91,7.54]
[1759380117120,10.72781969,222.93,222.91,7.54]
[1759380117315,7.62,222.93,222.88,110.36]
[1759380117517,7.62,222.93,222.89,7.54]
[1759380117717,7.62,222.93,222.88,110.36]
[1759380118618,4.035,222.95,222.89,7.54]
[1759380118813,3.10747107,222.94,222.89,7.54]
[1759380119016,10.70747107,222.93,222.89,7.54]
[1759380119218,7.6,222.93,222.89,7.54]
[1759380120216,10.70727851,222.93,222.88,110.36]
[1759380120416,7.6,222.93,222.89,7.54]
[1759380120815,7.6,222.92,222.89,7.54]
[1759380122429,7.6,222.92,222.85,7.54]
[1759380122626,3.10733535,222.91,222.82,117.88]
[1759380122926,7.6,222.89,222.82,117.88]
[1759380123124,3.10733535,222.88,222.82,117.88]
[1759380123724,4.0363,222.87,222.83,7.54]
[1759380123927,7.6,222.86,222.83,7.54]
[1759380124125,7.6,222.86,222.82,110.34]
[1759380124328,4.0363,222.87,222.82,117.88]
[1759380124523,7.6,222.86,222.82,117.88]
[1759380124723,7.6,222.86,222.83,7.54]
[1759380125130,8.99144532,222.89,222.83,7.54]
[1759380125427,12.0958547,222.89,222.83,7.54]
[1759380125729,8.99144532,222.89,222.83,7.54]
[1759380125930,7.6,222.89,222.83,7.54]
[1759380126225,8.99144532,222.89,222.83,7.54]
[1759380126925,1.39144532,222.87,222.82,110.34]
[1759380127131,1.39144532,222.87,222.82,117.88]
[1759380127333,7.6,222.86,222.82,110.34]
[1759380127534,7.6,222.86,222.83,7.54]
[1759380127722,1.39144532,222.88,222.83,7.54]
[1759380127922,7.6,222.87,222.82,110.34]
[1759380128126,1.39144532,222.88,222.82,117.88]
[1759380128332,7.6,222.86,222.82,110.34]
[1759380128635,7.6,222.87,222.79,117.88]
[1759380129135,1.39144532,222.86,222.79,117.88]
[1759380129323,17.80162995,222.93,222.79,110.34]
[1759380129324,7.6,222.85,222.79,110.34]
[1759380129528,7.6,222.89,222.78,7.54]
[1759380129727,8.99144532,222.85,222.78,7.54]
[1759380130432,7.6,222.85,222.78,7.54]
[1759380130735,7.6,222.85,222.79,1.39144532]
[1759380131428,10.68186546,222.85,222.79,1.39144532]
[1759380131630,7.6,222.85,222.79,1.39144532]
[1759380131833,7.6,222.85,222.78,7.54]
[1759380132033,7.6,222.86,222.79,7.54]
[1759380132230,3.07987846,222.86,222.74,7.54]
[1759380132534,7.6,222.84,222.74,7.54]
[1759380132728,10.67987846,222.84,222.77,7.54]
[1759380132934,7.6,222.84,222.79,7.54]
[1759380133138,1.39144532,222.88,222.79,7.54]
[1759380133328,7.6,222.87,222.79,7.54]
[1759380133729,7.6,222.87,222.8,1.39144532]
[1759380133931,7.6,222.87,222.81,7.54]
[1759380135435,10.67887264,222.87,222.81,7.54]
[1759380135636,7.6,222.87,222.81,7.54]
[1759380136933,10.67808645,222.87,222.81,7.54]
[1759380137134,7.6,222.87,222.81,7.54]
[1759380137636,7.6,222.9,222.83,7.54]
[1759380143755,10.67928703,222.9,222.83,7.54]
[1759380147460,10.67928703,222.9,222.85,1.39144532]
[1759380147461,3.07928703,222.9,222.85,1.39144532]
[1759380147660,3.07928703,222.93,222.86,7.96]
[1759380147859,3.07928703,222.92,222.86,7.96]
[1759380148051,3.07928703,222.91,222.86,7.96]
[1759380148257,3.07928703,222.9,222.86,7.96]
[1759380148453,3.07928703,222.92,222.86,7.96]
[1759380148758,10.93928703,222.91,222.85,1.39144532]
[1759380148955,3.07928703,222.9,222.85,1.39144532]
[1759380149357,3.07928703,222.9,222.86,7.96]
[1759380149752,3.07928703,222.9,222.87,1.39144532]
[1759380149955,3.07928703,222.9,222.87,9.35144532]
[1759380150156,3.07928703,222.9,222.88,7.96]
[1759380150456,10.93928703,222.94,222.87,1.39144532]
[1759380150660,3.08823551,222.93,222.87,9.35144532]
[1759380150855,3.08823551,222.92,222.87,1.39144532]
[1759380151054,3.08823551,222.93,222.87,5.42764532]
[1759380151254,3.08823551,222.92,222.88,7.96]
[1759380151456,3.08823551,222.93,222.87,5.42764532]
[1759380151751,3.08823551,222.92,222.87,5.42764532]
[1759380151955,3.08823551,222.93,222.88,7.96]
[1759380152155,3.08823551,222.92,222.88,7.96]
[1759380152457,3.08823551,222.91,222.88,7.96]
[1759380152655,3.08823551,222.91,222.87,5.42764532]
[1759380153251,3.08823551,222.91,222.88,7.96]
[1759380153454,7.86,222.92,222.87,5.42764532]
[1759380153857,10.94975132,222.95,222.88,7.96]
[1759380154060,3.08975132,222.94,222.88,7.96]
[1759380154254,3.08975132,222.93,222.87,13.38764532]
[1759380154455,10.94975132,222.92,222.87,5.42764532]
[1759380154656,3.08975132,222.91,222.88,7.96]
[1759380154857,3.08975132,222.9,222.88,7.96]
[1759380155056,7.86,222.92,222.88,7.96]
[1759380155255,3.19088381,222.91,222.87,5.42764532]
[1759380155462,3.19088381,222.9,222.88,7.96]
[1759380155662,7.86,222.92,222.88,7.96]
[1759380155860,3.19102891,222.91,222.88,7.96]
[1759380156060,3.19102891,222.9,222.87,5.42764532]
[1759380156260,7.86,222.92,222.87,5.42764532]
[1759380156460,3.19122177,222.91,222.87,5.42764532]
[1759380156659,3.19122177,222.9,222.87,5.42764532]
[1759380156866,7.86,222.92,222.78,62.8113]
[1759380156867,7.86,222.92,222.79,7.96]
[1759380157062,3.19108575,222.91,222.84,9.35144532]
[1759380157264,3.19108575,222.9,222.84,9.35144532]
[1759380157558,3.19108575,222.89,222.85,7.96]
[1759380157761,7.86,222.92,222.85,7.96]
[1759380158060,3.19137226,222.91,222.85,7.96]
[1759380158254,3.19137226,222.9,222.85,7.96]
[1759380158452,3.19137226,222.89,222.84,5.42804532]
[1759380158656,7.86,222.92,222.85,11.9964]
[1759380158852,3.19179936,222.91,222.85,11.9964]
[1759380159060,3.19179936,222.9,222.86,7.96]
[1759380159358,3.19179936,222.89,222.86,7.96]
[1759380159561,7.86,222.92,222.86,7.96]
[1759380159766,3.19233955,222.91,222.85,4.0364]
[1759380159961,3.19233955,222.9,222.86,1.39144532]
[1759380160155,3.19233955,222.89,222.87,7.96]
[1759380160354,7.86,222.9,222.87,7.96]
[1759380160554,3.19404409,222.89,222.87,7.96]
[1759380160859,7.86,222.9,222.87,7.96]
[1759380161052,7.86,222.88,222.8,7.96]
[1759380161255,3.19486088,222.87,222.81,1.39144532]
[1759380161458,7.86,222.88,222.8,7.96]
[1759380161659,3.19486005,222.87,222.81,1.39144532]
[1759380161865,11.05486005,222.86,222.81,1.39144532]
[1759380162069,7.86,222.89,222.82,7.96]
[1759380162271,3.19534512,222.88,222.82,7.96]
[1759380162571,3.19534512,222.87,222.82,7.96]
[1759380162763,7.86,222.85,222.82,7.96]
[1759380163267,7.86,222.89,222.81,7.96]
[1759380163466,3.19581342,222.88,222.81,7.96]
[1759380163666,3.19581342,222.87,222.81,7.96]
[1759380163863,3.19581342,222.86,222.81,7.96]
[1759380164061,7.86,222.89,222.81,7.96]
[1759380164258,3.19594844,222.88,222.83,7.96]
[1759380164463,3.19594844,222.87,222.82,1.39144532]
[1759380164765,3.19594844,222.86,222.82,5.42854532]
[1759380164969,9.25144532,222.9,222.83,7.96]
[1759380165168,3.19632636,222.89,222.83,7.96]
[1759380165369,3.19632636,222.88,222.82,5.42854532]
[1759380165569,3.19632636,222.87,222.82,5.42854532]
[1759380165869,3.19632636,222.86,222.83,7.96]
[1759380166064,7.86,222.89,222.83,7.96]
[1759380166260,11.05656739,222.88,222.82,5.42854532]
[1759380166466,3.19656739,222.87,222.82,5.42854532]
[1759380166672,3.19656739,222.86,222.83,7.96]
[1759380166864,7.86,222.89,222.82,13.38854532]
[1759380167064,3.19699934,222.88,222.82,13.38854532]
[1759380167269,3.19699934,222.87,222.82,5.42854532]
[1759380167468,7.86,222.89,222.82,5.42854532]
[1759380167469,3.19699934,222.86,222.83,7.96]
[1759380167664,7.86,222.89,222.83,7.96]
[1759380167865,3.19762277,222.88,222.83,7.96]
[1759380168171,11.05762277,222.87,222.82,5.42854532]
[1759380168370,3.19762277,222.86,222.83,7.96]
[1759380168670,7.86,222.87,222.83,7.96]
[1759380168972,3.19762417,222.86,222.82,5.42854532]
[1759380169170,7.86,222.87,222.84,11.9968]
[1759380169371,3.19762131,222.86,222.84,11.9968]
[1759380169567,7.86,222.87,222.85,7.96]
[1759380169767,3.1937632,222.86,222.85,7.96]
[1759380169964,3.1937632,222.86,222.84,4.0368]
[1759380170166,7.86,222.87,222.84,11.9968]
[1759380170465,3.1886974,222.86,222.85,7.96]
[1759380170660,3.1886974,222.86,222.84,4.0368]
[1759380170864,1.39144532,222.91,222.84,4.0368]
[1759380171064,11.04870622,222.9,222.84,4.0368]
[1759380171267,7.86,222.88,222.84,4.0368]
[1759380171466,3.18870622,222.87,222.84,4.0368]
[1759380171661,7.86,222.85,222.78,9.35144532]
[1759380171866,7.86,222.85,222.78,7.96]
[1759380172068,3.18822254,222.84,222.78,7.96]
[1759380172267,3.18822254,222.83,222.77,9.35144532]
[1759380172469,7.86,222.84,222.77,9.35144532]
[1759380172664,11.04812828,222.83,222.79,7.96]
[1759380172867,7.86,222.83,222.78,7.96]
[1759380173773,7.86,222.83,222.78,7.27]
[1759380174171,7.86,222.83,222.77,1.39144532]
[1759380174371,7.86,222.83,222.78,7.27]
[1759380174570,3.18804273,222.82,222.79,11.3075]
[1759380174774,7.96,222.86,222.79,11.3075]
[1759380175068,3.18804273,222.85,222.79,11.3075]
[1759380175276,3.18804273,222.84,222.79,11.3075]
[1759380175575,11.14804273,222.83,222.79,11.3075]
[1759380175773,3.18804273,222.82,222.8,7.27]
[1759380176074,7.96,222.83,222.8,7.27]
[1759380176270,3.18886888,222.82,222.8,7.27]
[1759380176471,7.96,222.83,222.8,7.27]
[1759380177175,3.19126519,222.82,222.8,7.27]
[1759380177376,1.39144532,222.87,222.8,4.0373]
[1759380177572,3.19130101,222.86,222.8,11.3073]
[1759380177772,3.19130101,222.85,222.79,7.27]
[1759380177965,3.19130101,222.84,222.8,1.39144532]
[1759380178171,3.19130101,222.83,222.82,11.3071]
[1759380178878,7.96,222.87,222.82,11.3071]
[1759380179076,11.15172079,222.86,222.83,7.27]
[1759380179269,11.15172079,222.85,222.83,7.27]
[1759380179475,3.19172079,222.84,222.83,7.27]
[1759380182578,1.39144532,222.9,222.84,4.0367]
[1759380182781,7.96,222.88,222.84,4.0367]
[1759380182971,7.96,222.86,222.84,4.0367]
[1759380183171,3.19316467,222.85,222.84,4.0367]
[1759380185280,3.19316467,222.85,222.84,11.3067]
[1759380186378,7.96,222.9,222.86,4.0364]
[1759380186578,3.18522924,222.89,222.83,7.27]
[1759380186783,3.18522924,222.88,222.83,7.27]
[1759380186976,3.18522924,222.87,222.86,11.3063]
[1759380188482,7.96,222.92,222.86,11.3063]
[1759380188683,7.96,222.9,222.86,11.3063]
[1759380188884,3.18532032,222.89,222.86,11.3063]
[1759380189178,3.18532032,222.88,222.86,11.3063]
[1759380189385,7.96,222.95,222.86,11.3063]
[1759380189587,3.18517026,222.94,222.86,11.3063]
[1759380189787,7.96,222.92,222.86,11.3063]
[1759380189976,7.96,222.9,222.86,11.3063]
[1759380190181,3.18517026,222.89,222.87,7.27]
[1759380190381,3.18517026,222.88,222.87,7.27]
[1759380192186,7.96,222.9,222.87,7.27]
[1759380192383,3.18474033,222.89,222.87,7.27]
[1759380192589,7.96,222.9,222.87,7.27]
[1759380192788,3.18474033,222.89,222.87,7.27]
[1759380192988,7.96,222.9,222.87,7.27]
[1759380193186,3.18474033,222.89,222.87,7.27]
[1759380193386,7.96,222.9,222.87,7.27]
[1759380193590,3.18456902,222.89,222.87,7.27]
[1759380193788,7.96,222.9,222.87,7.27]
[1759380193983,3.18467159,222.89,222.87,7.27]
[1759380194184,7.96,222.9,222.87,7.27]
[1759380194486,3.18450931,222.89,222.87,7.27]
[1759380194687,7.96,222.9,222.87,7.27]
[1759380194885,3.18450931,222.89,222.87,7.27]
[1759380195081,7.96,222.9,222.87,7.27]
[1759380195280,3.18435581,222.89,222.87,7.27]
[1759380195585,7.96,222.94,222.87,7.27]
[1759380195789,3.18457693,222.93,222.87,7.27]
[1759380195995,11.14457693,222.92,222.86,11.3063]
[1759380196186,7.96,222.9,222.87,7.27]
[1759380196387,3.18457693,222.89,222.87,7.27]
[1759380196593,7.96,222.9,222.87,7.27]
[1759380196899,3.18594222,222.89,222.87,7.27]
[1759380197192,7.96,222.9,222.87,7.27]
[1759380197493,3.18570483,222.89,222.87,7.27]
[1759380197791,7.96,222.95,222.88,4.036]
[1759380197993,3.18570343,222.94,222.88,4.036]
[1759380198196,7.96,222.92,222.88,11.306]
[1759380198393,11.14570343,222.91,222.88,11.306]
[1759380198594,3.18570343,222.9,222.88,11.306]
[1759380198789,7.96,222.95,222.88,11.306]
[1759380198992,7.96,222.93,222.88,4.036]
[1759380199292,7.96,222.91,222.88,11.306]
[1759380199591,11.14573025,222.9,222.87,7.27]
[1759380199785,3.18573025,222.89,222.87,7.27]
[1759380199990,7.96,222.9,222.87,7.27]
[1759380200185,3.18551345,222.89,222.87,7.27]
[1759380200401,7.96,222.9,222.87,7.27]
[1759380200700,11.14551344,222.89,222.87,7.27]
[1759380200990,7.96,222.89,222.87,7.27]
[1759380202796,3.18233901,222.88,222.87,7.27]
[1759380203593,7.27,222.87,222.83,4.0368]
[1759380203790,7.27,222.87,222.84,7.35]
[1759380203992,7.27,222.87,222.84,7.82]
[1759380204187,7.27,222.87,222.83,4.0368]
[1759380204391,7.27,222.87,222.84,7.82]
[1759380204793,7.27,222.87,222.78,7.82]
[1759380204993,7.36,222.85,222.78,7.82]
[1759380205193,3.18121738,222.84,222.78,7.82]
[1759380205399,3.18121738,222.83,222.77,7.82]
[1759380205599,7.36,222.85,222.77,7.82]
[1759380205900,3.18084882,222.84,222.77,7.82]
[1759380206098,3.18084882,222.83,222.77,7.82]
[1759380206288,7.36,222.85,222.77,7.82]
[1759380206488,3.18039899,222.84,222.77,7.82]
[1759380206692,7.36,222.85,222.77,7.82]
[1759380206893,3.18040072,222.84,222.77,7.82]
[1759380207101,7.36,222.85,222.78,4.0378]
[1759380207295,3.18039986,222.84,222.79,7.82]
[1759380207502,7.36,222.85,222.77,7.82]
[1759380208602,7.36,222.85,222.81,7.82]
[1759380209198,7.36,222.89,222.81,7.82]
[1759380209399,3.18039472,222.88,222.81,7.82]
[1759380209603,10.54039472,222.87,222.81,7.82]
[1759380209797,3.18039472,222.86,222.81,7.82]
[1759380210104,7.36,222.84,222.81,7.82]
[1759380212601,7.36,222.84,222.8,4.0375]
[1759380212905,7.36,222.84,222.82,11.8571]
[1759380213208,7.36,222.92,222.82,7.82]
[1759380213504,7.36,222.9,222.82,7.82]
[1759380213704,3.18013554,222.89,222.82,7.82]
[1759380213904,10.54013554,222.88,222.82,7.82]
[1759380214103,3.18013554,222.87,222.79,64.9820461]
[1759380214300,3.18013554,222.86,222.8,7.82]
[1759380214505,7.36,222.88,222.8,7.82]
[1759380214711,3.180289,222.87,222.8,7.82]
[1759380214900,3.180289,222.86,222.8,7.82]
[1759380215096,7.36,222.88,222.8,7.82]
[1759380215299,3.18663979,222.87,222.8,7.82]
[1759380215503,3.18663979,222.86,222.8,7.82]
[1759380215704,7.36,222.92,222.83,11.857]
[1759380215904,3.18708959,222.91,222.83,11.857]
[1759380216104,7.36,222.89,222.83,11.857]
[1759380216405,7.36,222.87,222.83,11.857]
[1759380216601,3.18708959,222.86,222.83,11.857]
[1759380216800,7.36,222.87,222.84,7.82]
[1759380217000,3.18770802,222.86,222.84,7.82]
[1759380217206,7.36,222.87,222.84,7.82]
[1759380217403,3.1878729,222.86,222.85,4.0366]
[1759380217608,7.36,222.9,222.83,7.82]
[1759380217905,3.18838224,222.89,222.83,7.82]
[1759380218207,12.32846972,222.97,222.87,7.82]
[1759380218402,3.18861679,222.96,222.87,7.82]
[1759380218603,3.18861679,222.95,222.87,7.82]
[1759380218797,7.36,222.97,222.87,7.82]
[1759380218798,3.18861679,222.94,222.91,4.0354]
[1759380218995,3.18861679,222.93,222.92,7.82]
[1759380219197,4.43352589,222.98,222.92,7.82]
[1759380219907,3.14929048,223.0,222.94,7.82]
[1759380220095,3.14929048,222.99,222.93,70.5895]
[1759380220300,3.14929048,223.0,222.93,70.5895]
[1759380220501,7.36,223.01,222.93,70.5895]
[1759380220807,3.14771232,223.0,222.93,62.7695]
[1759380220999,7.36,223.01,222.94,7.82]
[1759380221200,3.14779594,223.0,222.94,7.82]
[1759380221601,3.14779594,223.0,222.97,7.82]
[1759380222197,7.36,223.05,222.98,4.0342]
[1759380222402,3.14526538,223.04,222.97,7.82]
[1759380222608,3.14526538,223.04,222.98,62.7549]
[1759380222806,7.36,223.08,222.99,7.82]
[1759380223108,3.14556274,223.07,222.99,7.82]
[1759380223305,10.50556274,223.07,223.03,7.82]
[1759380223496,7.36,223.11,223.03,7.82]
[1759380223696,7.36,223.09,223.03,7.82]
[1759380223911,10.5030423,223.08,223.02,11.8534]
[1759380224100,7.36,223.08,223.02,11.8534]
[1759380225307,8.14040904,223.13,223.04,4.0331]
[1759380225499,7.36,223.13,223.04,4.0331]
[1759380228710,7.36,223.13,223.05,7.82]
[1759380228903,7.36,223.13,223.06,4.0328]
[1759380229300,7.36,223.13,223.06,7.82]
[1759380229712,7.36,223.17,223.09,7.82]
[1759380231612,7.36,223.17,223.1,4.032]
[1759380232513,7.36,223.17,223.11,7.82]
[1759380232716,7.36,223.19,223.12,11.8517]
[1759380235006,2.1736461,223.2,223.09,4.0321]
[1759380235215,7.32,223.19,223.09,4.0321]
[1759380235515,7.32,223.19,223.08,7.42]
[1759380236418,7.32,223.19,223.08,11.4523]
[1759380236812,6.2039461,223.2,223.08,11.4523]
[1759380237215,7.32,223.19,223.08,11.4523]
[1759380237514,6.2039461,223.2,223.08,11.4523]
[1759380237715,7.32,223.19,223.08,11.4523]
[1759380238717,7.32,223.19,223.1,4.032]
[1759380239111,7.32,223.19,223.12,4.0317]
[1759380239512,7.32,223.19,223.11,7.42]
[1759380239708,7.32,223.19,223.12,7.42]
[1759380240313,7.32,223.23,223.13,7.42]
[1759380240516,7.32,223.23,223.16,4.0309]
[1759380244016,4.029,223.27,223.16,4.0309]
[1759380244017,7.32,223.24,223.18,4.0306]
[1759380246222,7.32,223.24,223.18,11.4506]
[1759380246419,7.32,223.24,223.2,4.0302]
[1759380246724,7.32,223.25,223.21,7.42]
[1759380247017,1.38659997,223.26,223.17,12.83729997]
[1759380247222,7.32,223.25,223.17,12.83729997]
[1759380247919,0.77979698,223.29,223.2,62.6921]
[1759380248120,7.32,223.3,223.21,8.80659997]
[1759380249026,7.32,223.3,223.23,1.38659997]
[1759380249221,7.32,223.3,223.26,4.0292]
[1759380249415,8.70659997,223.34,223.27,7.42]
[1759380249820,7.32,223.34,223.27,7.42]
[1759380250021,7.32,223.34,223.27,8.80659997]
[1759380250216,7.32,223.37,223.27,117.82]
[1759380250422,7.32,223.39,223.31,5.41469997]
[1759380250627,7.32,223.39,223.3,7.42]
[1759380251026,7.32,223.39,223.31,1.38659997]
[1759380251231,7.32,223.39,223.32,4.0281]
[1759380253119,7.32,223.39,223.33,8.80659997]
[1759380253728,7.32,223.39,223.35,7.42]
[1759380255126,8.70659997,223.43,223.34,4.0277]
[1759380255322,1.38659997,223.37,223.28,1.38659997]
[1759380255523,7.32,223.36,223.28,1.38659997]
[1759380256829,7.32,223.36,223.28,5.41529997]
[1759380258623,1.38659997,223.35,223.27,7.42]
[1759380258828,7.32,223.34,223.27,7.42]
[1759380260630,7.32,223.34,223.27,11.4489]
[1759380262434,7.32,223.34,223.28,1.38659997]
[1759380262728,7.32,223.34,223.27,11.4489]
[1759380262933,7.32,223.34,223.28,1.38659997]
[1759380265833,7.41,223.35,223.29,4.0286]
[1759380266630,1.38659997,223.37,223.29,4.0286]
[1759380266631,7.41,223.38,223.32,1.38659997]